bitfinex-derivatives/quotes_BNBF0:USTF0_20250128
["timestamp","ask_amount","ask_price","bid_price","bid_amount"]
[1738063471859,0.27207219,675.88,674.64,1.40482716]
[1738063473065,0.27207795,675.87,674.64,1.40482716]
[1738063473364,0.29590613,675.89,674.64,1.40482716]
[1738063473564,0.27207877,675.88,674.64,1.40482716]
[1738063475067,0.27207877,675.88,674.64,0.2964544]
[1738063476366,0.27208342,675.87,674.64,0.2964544]
[1738063476562,0.27208342,675.88,674.64,0.2964544]
[1738063478068,0.27208123,675.87,674.64,0.2964544]
[1738063478265,0.27208123,675.88,674.64,0.2964544]
[1738063478468,0.27208123,675.87,674.64,0.2964544]
[1738063478662,0.27208123,675.86,674.64,0.2964544]
[1738063478864,0.27208123,675.85,674.64,0.2964544]
[1738063479167,0.29590613,675.89,674.64,0.2964544]
[1738063479168,0.27208123,675.84,674.64,0.2964544]
[1738063479369,0.27208123,675.88,674.64,0.2964544]
[1738063479667,0.27208123,675.87,674.64,0.2964544]
[1738063479867,0.27208123,675.88,674.64,0.2964544]
[1738063480067,0.27208123,675.87,674.64,0.2964544]
[1738063480263,0.27208123,675.86,674.64,0.2964544]
[1738063480470,0.27208123,675.85,674.64,0.2964544]
[1738063480769,0.27208123,675.84,674.64,0.2964544]
[1738063480968,0.27208123,675.88,674.64,0.2964544]
[1738063481162,0.29590613,675.89,674.64,0.2964544]
[1738063482470,0.27205459,675.88,674.64,0.2964544]
[1738063483068,0.29590613,675.89,674.68,1.10837276]
[1738063483069,0.27205506,675.87,674.68,1.10837276]
[1738063483370,0.29590613,675.89,674.69,0.29643243]
[1738063483570,0.27205061,675.88,674.69,0.29643243]
[1738063486476,0.27205061,675.88,674.79,1.10837276]
[1738063487971,0.27206203,675.87,674.79,1.10837276]
[1738063488170,0.27206203,675.86,674.79,1.10837276]
[1738063488375,0.27206203,675.85,674.79,1.10837276]
[1738063488570,0.27206203,675.88,674.79,1.10837276]
[1738063488771,0.29590613,675.89,674.79,1.10837276]
[1738063488970,0.27206202,675.88,674.79,1.10837276]
[1738063489876,0.27206202,675.88,674.69,0.29643243]
[1738063489877,0.27206202,675.88,674.85,1.10837276]
[1738063491280,0.29590613,675.89,674.85,1.10837276]
[1738063491474,0.27209004,675.88,674.85,1.10837276]
[1738063491781,1.81783498,675.88,674.85,1.10837276]
[1738063491982,0.27209004,675.87,674.85,1.10837276]
[1738063492979,0.27209145,675.86,674.85,1.10837276]
[1738063493279,0.27209145,675.87,674.85,1.10837276]
[1738063493481,0.27209145,675.86,674.85,1.10837276]
[1738063493681,0.27209145,675.85,674.85,1.10837276]
[1738063493876,0.27209145,675.84,674.85,1.10837276]
[1738063494085,0.27209145,675.83,674.83,1.10837276]
[1738063496883,1.1047622,675.81,674.82,1.10837276]
[1738063497086,0.27209145,675.8,674.82,1.10837276]
[1738063499886,1.1047622,675.79,674.72,1.10837276]
[1738063500181,0.27209145,675.78,674.72,1.10837276]
[1738063502790,0.27209145,675.78,674.69,0.29643243]
[1738063503088,0.27209145,675.77,674.69,0.29643243]
[1738063503283,0.27209145,675.76,674.69,0.29643243]
[1738063503486,0.27209145,675.75,674.69,0.29643243]
[1738063503685,0.27209145,675.8,674.69,0.29643243]
[1738063503886,0.27209145,675.79,674.69,0.29643243]
[1738063504086,0.27209145,675.78,674.69,0.29643243]
[1738063504390,0.27209145,675.77,674.69,0.29643243]
[1738063504590,0.27209145,675.8,674.69,0.29643243]
[1738063504792,0.27209145,675.79,674.69,0.29643243]
[1738063504986,0.27209145,675.78,674.69,0.29643243]
[1738063505191,0.27209145,675.77,674.69,0.29643243]
[1738063505493,0.27209145,675.76,674.69,0.29643243]
[1738063505689,0.27209145,675.75,674.69,0.29643243]
[1738063505884,0.27209145,675.74,674.69,0.29643243]
[1738063506084,0.27209145,675.73,674.69,0.29643243]
[1738063506289,0.27209145,675.72,674.69,0.29643243]
[1738063506489,0.27209145,675.71,674.69,0.29643243]
[1738063506691,0.27209145,675.7,674.69,0.29643243]
[1738063506891,0.27209145,675.69,674.69,0.29643243]
[1738063507091,0.27209145,675.8,674.69,0.29643243]
[1738063507394,0.27209145,675.79,674.69,0.29643243]
[1738063507595,0.27209145,675.8,674.69,0.29643243]
[1738063507792,0.27209145,675.79,674.69,0.29643243]
[1738063507994,0.27209145,675.78,674.69,0.29643243]
[1738063508194,0.27209145,675.8,674.69,0.29643243]
[1738063508394,0.27209145,675.79,674.69,0.29643243]
[1738063508693,0.27209145,675.78,674.69,0.29643243]
[1738063508894,0.27209145,675.77,674.69,0.29643243]
[1738063509095,0.27209145,675.76,674.69,0.29643243]
[1738063509296,0.27209145,675.8,674.69,0.29643243]
[1738063509596,0.27209145,675.79,674.69,0.29643243]
[1738063509794,0.27209145,675.8,674.69,0.29643243]
[1738063510595,2.65075321,675.81,674.69,0.29643243]
[1738063511497,0.27213623,675.8,674.69,0.29643243]
[1738063515197,1.54599101,675.81,674.69,0.29643243]
[1738063515397,0.27212836,675.8,674.69,0.29643243]
[1738063526709,1.54599101,675.81,674.69,0.29643243]
[1738063526911,0.27212472,675.8,674.69,0.29643243]
[1738063528309,1.54599101,675.81,674.69,0.29643243]
[1738063528509,0.272135,675.8,674.69,0.29643243]
[1738063529608,1.54599101,675.81,674.69,0.29643243]
[1738063529811,0.27213518,675.8,674.69,0.29643243]
[1738063530012,1.54599101,675.81,674.69,0.29643243]
[1738063530208,0.27213328,675.8,674.69,0.29643243]
[1738063530616,1.1047622,675.79,674.69,0.29643243]
[1738063530814,0.27213328,675.78,674.69,0.29643243]
[1738063531712,0.27212921,675.77,674.69,0.29643243]
[1738063531910,0.27212921,675.78,674.69,0.29643243]
[1738063532114,0.27212921,675.77,674.69,0.29643243]
[1738063532416,0.27212921,675.76,674.69,0.29643243]
[1738063532616,0.27212921,675.75,674.69,0.29643243]
[1738063532810,0.27212921,675.74,674.69,0.29643243]
[1738063533010,0.27212921,675.73,674.69,0.29643243]
[1738063533209,1.54610549,675.74,674.69,0.29643243]
[1738063533412,0.27212921,675.73,674.69,0.29643243]
[1738063533812,1.1047622,675.68,674.78,1.10837276]
[1738063534015,0.27212921,675.67,674.78,1.10837276]
[1738063538419,0.27213672,675.66,674.78,1.10837276]
[1738063538614,1.1047622,675.68,674.78,1.10837276]
[1738063538816,0.2721359,675.67,674.78,1.10837276]
[1738063539920,1.1047622,675.68,674.78,1.10837276]
[1738063540120,0.27213864,675.67,674.78,1.10837276]
[1738063540420,0.27213864,675.67,674.75,1.10837276]
[1738063540619,0.27213864,675.66,674.75,1.10837276]
[1738063540819,0.27213864,675.65,674.75,1.10837276]
[1738063541019,0.27213864,675.68,674.75,1.10837276]
[1738063541319,0.27213669,675.67,674.75,1.10837276]
[1738063541519,0.27213669,675.68,674.75,1.10837276]
[1738063541720,0.27213669,675.67,674.75,1.10837276]
[1738063541919,0.27213669,675.68,674.75,1.10837276]
[1738063543420,0.27213669,675.68,674.69,0.29643243]
[1738063543421,1.37689889,675.68,674.76,1.10837276]
[1738063543614,0.27213669,675.67,674.76,1.10837276]
[1738063544621,0.27213597,675.66,674.76,1.10837276]
[1738063544819,0.27213597,675.65,674.76,1.10837276]
[1738063545018,1.1047622,675.68,674.76,1.10837276]
[1738063545019,0.27213597,675.64,674.76,1.10837276]
[1738063545221,0.27213597,675.63,674.76,1.10837276]
[1738063545420,0.27213597,675.67,674.76,1.10837276]
[1738063545723,0.27213712,675.66,674.76,1.10837276]
[1738063545920,0.27213712,675.67,674.76,1.10837276]
[1738063546120,0.27213712,675.66,674.76,1.10837276]
[1738063546321,0.27213712,675.67,674.76,1.10837276]
[1738063546521,0.27213712,675.66,674.76,1.10837276]
[1738063546721,0.27213712,675.67,674.76,1.10837276]
[1738063546923,1.1047622,675.65,674.79,1.10837276]
[1738063547124,0.27213712,675.64,674.79,1.10837276]
[1738063549022,1.1047622,675.62,674.82,1.10837276]
[1738063549223,0.27213712,675.61,674.82,1.10837276]
[1738063551725,1.37689932,675.61,674.82,1.10837276]
[1738063551924,0.27213712,675.6,674.82,1.10837276]
[1738063553426,0.27213919,675.59,674.82,1.10837276]
[1738063553726,0.27213919,675.58,674.82,1.10837276]
[1738063553922,0.27213919,675.6,674.82,1.10837276]
[1738063554123,1.1047622,675.61,674.82,1.10837276]
[1738063558231,1.54610549,675.74,674.69,0.29643243]
[1738063567035,0.27215359,675.73,674.69,0.29643243]
[1738063570739,1.37691579,675.73,674.69,0.29643243]
[1738063571041,0.27215359,675.72,674.69,0.29643243]
[1738063571740,0.27215359,675.72,674.6,1.10837276]
[1738063571939,0.56813417,675.72,674.6,1.10837276]
[1738063572141,0.27215359,675.71,674.6,1.10837276]
[1738063572442,0.29598934,675.7,674.6,1.10837276]
[1738063572640,0.27215359,675.69,674.6,1.10837276]
[1738063572841,0.2959981,675.68,674.6,1.10837276]
[1738063573136,0.27215359,675.67,674.6,1.10837276]
[1738063573534,0.27222894,675.66,674.6,1.10837276]
[1738063573739,0.29601124,675.65,674.6,1.10837276]
[1738063573939,0.29601124,675.65,674.21,1.10837276]
[1738063573940,1.1047622,675.6,674.53,1.10837276]
[1738063574139,0.27222894,675.59,674.53,1.10837276]
[1738063577344,0.27222894,675.59,674.37,1.10837276]
[1738063580142,1.1047622,675.6,674.37,1.10837276]
[1738063580443,0.27222431,675.59,674.37,1.10837276]
[1738063581140,0.27222431,675.59,674.32,1.10837276]
[1738063581337,0.27222431,675.64,674.32,1.10837276]
[1738063581541,2.65119976,675.67,674.32,1.10837276]
[1738063581542,0.56824432,675.63,674.32,1.10837276]
[1738063581741,0.27222431,675.62,674.32,1.10837276]
[1738063582642,0.27222132,675.61,674.32,1.10837276]
[1738063582845,0.27222132,675.62,674.32,1.10837276]
[1738063584049,0.27222132,675.62,674.35,1.10837276]
[1738063586844,0.27222132,675.62,673.84,0.70611252]
[1738063586845,0.27222132,675.62,674.24,1.10837276]
[1738063587046,0.27222132,675.62,674.24,1.40500304]
[1738063587242,0.27222132,675.62,674.25,1.54670104]
[1738063588549,0.29602001,675.63,674.25,1.54670104]
[1738063588747,0.27222622,675.62,674.25,1.54670104]
[1738063593652,0.29602877,675.61,674.25,1.54670104]
[1738063593851,0.27222622,675.6,674.25,1.54670104]
[1738063594054,0.56825937,675.6,674.25,1.54670104]
[1738063594252,1.81896736,675.59,674.25,1.54670104]
[1738063594453,0.27222622,675.58,674.25,1.54670104]
[1738063598754,1.54674114,675.59,674.25,1.54670104]
[1738063598954,0.27222446,675.58,674.25,1.54670104]
[1738063601258,0.27222446,675.58,674.32,1.10837276]
[1738063604357,0.27222446,675.58,674.43,1.10837276]
[1738063607160,0.27222892,675.57,674.43,1.10837276]
[1738063607360,0.27222892,675.56,674.43,1.10837276]
[1738063607561,1.1047622,675.5,674.47,1.10837276]
[1738063608160,1.54667812,675.49,674.47,1.10837276]
[1738063611260,1.54667812,675.49,674.43,1.10837276]
[1738063615261,1.54667812,675.49,674.25,1.54670104]
[1738063624067,1.54667812,675.49,674.35,1.10837276]
[1738063629674,0.27223778,675.48,674.35,1.10837276]
[1738063629874,0.27223778,675.48,674.25,1.54670104]
[1738063629875,0.27223778,675.48,674.36,1.10837276]
[1738063631675,1.54667812,675.49,674.36,1.10837276]
[1738063632375,0.27224078,675.47,674.36,1.10837276]
[1738063632577,0.27224078,675.46,674.36,1.10837276]
[1738063632777,0.27224078,675.48,674.36,1.10837276]
[1738063632976,0.27224078,675.47,674.44,1.10837276]
[1738063634177,0.5683309,675.47,674.44,1.10837276]
[1738063634377,0.27224078,675.46,674.44,1.10837276]
[1738063634779,0.2722673,675.45,674.44,1.10837276]
[1738063635080,0.2722673,675.44,674.44,1.10837276]
[1738063635275,0.2722673,675.46,674.44,1.10837276]
[1738063635475,0.2722673,675.45,674.44,1.10837276]
[1738063635672,0.2722673,675.46,674.44,1.10837276]
[1738063635977,0.2722673,675.45,674.44,1.10837276]
[1738063636276,0.2722673,675.44,674.44,1.10837276]
[1738063636580,0.2722673,675.43,674.44,1.10837276]
[1738063636781,0.2722673,675.42,674.44,1.10837276]
[1738063636972,0.2722673,675.46,674.44,1.10837276]
[1738063637179,1.54686146,675.41,674.35,1.10837276]
[1738063637380,0.2722673,675.4,674.35,1.10837276]
[1738063639880,0.2722666,675.39,674.35,1.10837276]
[1738063640073,0.2722666,675.4,674.35,1.10837276]
[1738063640277,0.2722666,675.39,674.35,1.10837276]
[1738063640577,0.2722666,675.38,674.35,1.10837276]
[1738063640779,0.2722666,675.4,674.36,1.10837276]
[1738063641080,0.2722666,675.39,674.36,1.10837276]
[1738063641281,0.2722666,675.38,674.36,1.10837276]
[1738063641481,0.2722666,675.4,674.36,1.10837276]
[1738063641683,0.2722666,675.39,674.36,1.10837276]
[1738063641877,0.2722666,675.4,674.36,1.10837276]
[1738063642083,0.2722666,675.39,674.36,1.10837276]
[1738063642283,0.2722666,675.4,674.36,1.10837276]
[1738063642478,0.2722666,675.39,674.36,1.10837276]
[1738063642677,0.2722666,675.4,674.36,1.10837276]
[1738063642985,0.2722666,675.39,674.36,1.10837276]
[1738063643187,0.2722666,675.4,674.36,1.10837276]
[1738063643382,0.2722666,675.39,674.36,1.10837276]
[1738063643686,0.2722666,675.38,674.36,1.10837276]
[1738063643882,1.54686146,675.41,674.36,1.10837276]
[1738063643883,0.2722666,675.4,674.36,1.10837276]
[1738063644185,0.2722666,675.39,674.36,1.10837276]
[1738063644383,0.2722666,675.4,674.36,1.10837276]
[1738063644583,0.2722666,675.39,674.36,1.10837276]
[1738063644783,0.2722666,675.4,674.36,1.10837276]
[1738063644983,0.2722666,675.39,674.36,1.10837276]
[1738063645285,0.2722666,675.38,674.36,1.10837276]
[1738063645478,0.2722666,675.37,674.36,1.10837276]
[1738063645682,0.2722666,675.36,674.36,1.10837276]
[1738063645882,0.2722666,675.35,674.36,1.10837276]
[1738063646082,0.2722666,675.34,674.36,1.10837276]
[1738063646282,0.2722666,675.4,674.36,1.10837276]
[1738063646580,0.27227759,675.39,674.36,1.10837276]
[1738063646886,0.27227759,675.38,674.35,1.10837276]
[1738063649985,0.27227759,675.38,674.3,1.10837276]
[1738063650283,0.27227759,675.37,674.3,1.10837276]
[1738063650480,0.27227759,675.4,674.3,1.10837276]
[1738063650684,0.27227759,675.39,674.3,1.10837276]
[1738063650883,0.27227759,675.38,674.3,1.10837276]
[1738063651184,0.27227759,675.37,674.3,1.10837276]
[1738063651385,0.27227759,675.4,674.3,1.10837276]
[1738063651581,0.27227759,675.39,674.3,1.10837276]
[1738063651885,0.27227759,675.38,674.3,1.10837276]
[1738063652086,1.54686146,675.41,674.3,1.10837276]
[1738063652287,0.27227889,675.4,674.3,1.10837276]
[1738063653087,0.27227889,675.4,674.28,1.10837276]
[1738063654587,1.54686146,675.41,674.28,1.10837276]
[1738063654787,0.27227847,675.4,674.28,1.10837276]
[1738063655787,0.27227847,675.4,674.27,1.10837276]
[1738063656287,0.27229836,675.39,674.27,1.10837276]
[1738063656487,0.27229836,675.4,674.27,1.10837276]
[1738063658494,1.37706056,675.4,674.24,0.29663028]
[1738063658690,0.27229836,675.39,674.24,0.29663028]
[1738063661391,0.27229836,675.38,674.24,0.29663028]
[1738063661588,0.27229836,675.4,674.24,0.29663028]
[1738063661789,0.27230176,675.39,674.24,0.29663028]
[1738063661994,0.27230176,675.4,674.24,0.29663028]
[1738063662192,0.27230176,675.39,674.24,0.29663028]
[1738063662389,0.27230176,675.38,674.24,0.29663028]
[1738063662593,1.54686146,675.41,674.24,0.29663028]
[1738063662793,0.27229928,675.4,674.24,0.29663028]
[1738063663895,0.27229639,675.39,674.24,0.29663028]
[1738063664088,0.27229639,675.4,674.24,0.29663028]
[1738063664292,0.27229657,675.39,674.24,0.29663028]
[1738063664492,0.27229657,675.38,674.24,0.29663028]
[1738063664696,0.27229657,675.4,674.24,0.29663028]
[1738063664889,0.27229954,675.39,674.24,0.29663028]
[1738063665093,0.27229954,675.38,674.24,0.29663028]
[1738063665292,1.54686146,675.41,674.24,0.29663028]
[1738063665492,0.27229934,675.4,674.24,0.29663028]
[1738063667897,1.54686146,675.41,674.24,0.29663028]
[1738063668098,0.27230718,675.4,674.24,0.29663028]
[1738063671497,1.1047622,675.28,674.3,1.10837276]
[1738063671697,0.27230718,675.27,674.3,1.10837276]
[1738063673102,0.27230788,675.26,674.3,1.10837276]
[1738063673301,0.27230788,675.27,674.3,1.10837276]
[1738063673500,0.27230788,675.26,674.3,1.10837276]
[1738063673702,0.27230695,675.25,674.3,1.10837276]
[1738063673902,0.27230695,675.24,674.3,1.10837276]
[1738063674103,0.27230695,675.27,674.3,1.10837276]
[1738063674303,0.27230695,675.26,674.3,1.10837276]
[1738063674500,0.27230695,675.25,674.3,1.10837276]
[1738063674701,1.1047622,675.28,674.3,1.10837276]
[1738063674898,0.27230319,675.27,674.3,1.10837276]
[1738063675300,0.27230319,675.3,674.3,1.10837276]
[1738063675505,0.27230319,675.29,674.3,1.10837276]
[1738063675806,0.27230319,675.28,674.3,1.10837276]
[1738063676006,0.27230319,675.3,674.3,1.10837276]
[1738063676204,0.27230319,675.29,674.3,1.10837276]
[1738063676506,0.27229727,675.28,674.3,1.10837276]
[1738063676800,0.27229727,675.27,674.3,1.10837276]
[1738063677006,0.27229727,675.3,674.3,1.10837276]
[1738063677205,0.27229727,675.29,674.3,1.10837276]
[1738063677406,0.27229727,675.3,674.3,1.10837276]
[1738063678605,0.27229727,675.3,674.32,1.10837276]
[1738063679904,1.54709642,675.31,674.32,1.10837276]
[1738063680107,0.27229614,675.3,674.32,1.10837276]
[1738063681206,1.54709642,675.31,674.32,1.10837276]
[1738063681611,1.54709642,675.31,674.29,1.10837276]
[1738063684307,1.54709642,675.31,674.24,0.29663028]
[1738063691214,0.27230476,675.3,674.24,0.29663028]
[1738063691915,0.27230574,675.29,674.24,0.29663028]
[1738063692213,0.27230574,675.28,674.24,0.29663028]
[1738063692614,0.27230574,675.28,674.31,1.10837276]
[1738063692812,0.27230574,675.3,674.31,1.10837276]
[1738063695918,0.27230574,675.3,674.26,1.10837276]
[1738063695919,1.1047622,675.25,674.26,1.10837276]
[1738063696111,0.27230574,675.24,674.26,1.10837276]
[1738063697517,1.54722825,675.23,674.26,1.10837276]
[1738063697913,0.27230574,675.22,674.26,1.10837276]
[1738063698919,0.27230574,675.22,674.24,1.40500304]
[1738063701521,0.27230574,675.22,674.24,0.29663028]
[1738063702220,1.54722825,675.23,674.24,0.29663028]
[1738063710123,0.27232693,675.22,674.24,0.29663028]
[1738063711020,1.54722825,675.23,674.24,0.29663028]
[1738063711526,0.27232647,675.22,674.24,0.29663028]
[1738063711826,1.54722825,675.23,674.24,0.29663028]
[1738063712627,1.54722825,675.23,674.16,1.10837276]
[1738063712822,1.54722825,675.23,674.16,1.09299617]
[1738063713424,0.2723799,675.22,674.16,1.09299617]
[1738063714529,0.2723799,675.22,673.06,1.10837276]
[1738063714728,0.2723799,675.22,673.16,0.29710618]
[1738063715330,0.2723799,675.22,673.17,1.54803123]
[1738063715627,0.2723799,675.22,673.27,0.29705764]
[1738063718231,0.2723873,675.21,673.69,1.10837276]
[1738063718530,0.2723873,675.2,673.7,0.29686804]
[1738063718729,0.2723873,675.19,673.7,0.29686804]
[1738063718930,0.2723873,675.18,673.7,0.29686804]
[1738063719130,0.2723873,675.17,673.7,0.29686804]
[1738063719329,0.2723873,675.22,673.7,0.29686804]
[1738063719526,0.2723873,675.21,673.7,0.29686804]
[1738063719734,1.54768126,675.21,673.7,0.29686804]
[1738063719930,0.2723873,675.2,673.7,0.29686804]
[1738063725834,1.1047622,675.19,673.83,1.10837276]
[1738063726031,0.2723873,675.18,673.84,0.29680636]
[1738063726633,0.27239613,675.17,673.84,0.29680636]
[1738063726834,0.27239613,675.18,673.84,0.29680636]
[1738063727033,0.27239613,675.17,673.84,0.29680636]
[1738063727229,0.27239613,675.16,673.84,0.29680636]
[1738063727435,0.27239613,675.18,673.84,0.29680636]
[1738063728137,1.1047622,675.17,673.84,0.29680636]
[1738063728337,0.27239613,675.16,673.84,0.29680636]
[1738063732039,0.27239613,675.16,673.87,1.10837276]
[1738063733330,0.27238412,675.15,673.87,1.10837276]
[1738063733532,0.27238412,675.16,673.87,1.10837276]
[1738063734036,1.54763537,675.15,673.87,1.10837276]
[1738063734338,0.27238412,675.14,673.87,1.10837276]
[1738063735337,0.27238412,675.14,673.89,1.10837276]
[1738063738136,0.27238412,675.14,673.84,0.29680636]
[1738063738137,0.27238412,675.14,673.84,1.40517912]
[1738063740444,0.27238412,675.14,673.84,0.29680636]
[1738063740846,0.26099775,675.14,673.84,0.29680636]
[1738063741642,1.54763537,675.15,673.84,0.29680636]
[1738063741944,0.27238569,675.14,673.84,0.29680636]
[1738063745547,1.54763537,675.15,673.84,0.29680636]
[1738063746349,0.27244644,675.14,673.84,0.29680636]
[1738063746646,0.29623924,675.13,673.84,0.29680636]
[1738063746842,0.2724727,675.12,673.84,0.29680636]
[1738063747649,0.29624801,675.11,673.84,0.29680636]
[1738063747847,0.2724727,675.1,673.84,0.29680636]
[1738063748249,0.29625679,675.09,673.84,0.29680636]
[1738063748448,0.2724727,675.08,673.84,0.29680636]
[1738063748646,0.29626557,675.07,673.84,0.29680636]
[1738063748847,0.2724727,675.06,673.84,0.29680636]
[1738063749048,0.29627435,675.05,673.84,0.29680636]
[1738063749248,0.2724727,675.04,673.84,0.29680636]
[1738063749448,0.29628312,675.03,673.84,0.29680636]
[1738063749749,0.2724727,675.02,673.84,0.29680636]
[1738063749950,0.2962919,675.01,673.84,0.29680636]
[1738063750149,0.2724727,675.0,673.84,0.29680636]
[1738063750350,0.29630068,674.99,673.84,0.29680636]
[1738063750651,0.2724727,674.98,673.84,0.29680636]
[1738063751051,0.29630946,674.97,673.84,0.29680636]
[1738063751346,0.2724727,674.96,673.84,0.29680636]
[1738063751745,0.29630946,674.97,673.84,0.29680636]
[1738063751945,0.27246552,674.96,673.84,0.29680636]
[1738063752852,0.29630946,674.97,673.84,0.29680636]
[1738063787984,0.29630946,674.97,673.89,1.10837276]
[1738063788184,0.29630946,674.97,673.9,0.29677993]
[1738063790086,1.54767552,675.23,673.9,0.29677993]
[1738063790283,0.27234469,675.22,673.9,0.29677993]
[1738063791186,0.27234469,675.22,673.97,1.10837276]
[1738063791781,2.65243772,675.23,673.97,1.10837276]
[1738063791982,0.27233856,675.22,673.97,1.10837276]
[1738063793785,1.37710076,675.22,674.02,1.10837276]
[1738063793985,0.27233856,675.21,674.02,1.10837276]
[1738063795092,0.27233856,675.21,674.03,0.29672269]
[1738063795389,1.1047622,675.22,674.03,0.29672269]
[1738063797089,1.1047622,675.29,674.08,1.10837276]
[1738063799994,1.54733145,675.31,674.03,0.29672269]
[1738063800194,0.27231612,675.3,674.03,0.29672269]
[1738063800895,1.54733145,675.31,674.03,0.29672269]
[1738063801194,0.27231853,675.3,674.03,0.29672269]
[1738063801794,1.54733145,675.31,674.03,0.29672269]
[1738063803996,0.27231386,675.3,674.03,0.29672269]
[1738063804395,1.54733145,675.31,674.03,0.29672269]
[1738063804797,0.27232441,675.3,674.03,0.29672269]
[1738063806300,1.54733145,675.31,674.03,0.29672269]
[1738063806496,0.29616466,675.3,674.03,0.29672269]
[1738063806697,0.27238007,675.29,674.03,0.29672269]
[1738063806898,0.29617343,675.28,674.03,0.29672269]
[1738063807099,0.27238007,675.27,674.03,0.29672269]
[1738063807299,0.29618221,675.26,674.03,0.29672269]
[1738063807495,0.27238007,675.25,674.03,0.29672269]
[1738063807696,0.56856666,675.25,674.03,0.29672269]
[1738063807896,0.27238007,675.24,674.03,0.29672269]
[1738063808296,1.81992368,675.24,674.03,0.29672269]
[1738063808496,0.27238007,675.23,674.03,0.29672269]
[1738063809198,1.37714227,675.23,674.03,0.29672269]
[1738063809402,0.27238007,675.22,674.03,0.29672269]
[1738063812204,1.37714227,675.22,674.03,0.29672269]
[1738063812408,0.27238007,675.21,674.03,0.29672269]
[1738063812609,1.1047622,675.22,674.03,0.29672269]
[1738063812809,0.27238101,675.21,674.03,0.29672269]
[1738063814606,1.1047622,675.22,674.03,0.29672269]
[1738063814810,0.27238145,675.21,674.03,0.29672269]
[1738063815410,1.54754361,675.24,674.03,0.29672269]
[1738063815411,0.27238145,675.2,674.03,0.29672269]
[1738063815605,0.27238145,675.19,674.03,0.29672269]
[1738063815805,0.27238145,675.18,674.03,0.29672269]
[1738063816004,0.27238145,675.17,674.03,0.29672269]
[1738063816209,1.54754361,675.24,674.03,0.29672269]
[1738063816410,0.27238397,675.23,674.03,0.29672269]
[1738063817013,0.29619975,675.22,674.03,0.29672269]
[1738063817206,0.27238397,675.21,674.03,0.29672269]
[1738063817404,0.29620853,675.2,674.03,0.29672269]
[1738063817706,0.27238397,675.19,674.03,0.29672269]
[1738063817906,0.29620853,675.2,674.03,0.29672269]
[1738063818105,0.27240404,675.19,674.03,0.29672269]
[1738063819006,0.2962173,675.18,674.03,0.29672269]
[1738063819210,0.27240404,675.17,674.03,0.29672269]
[1738063819411,0.29622607,675.16,674.03,0.29672269]
[1738063819611,0.27240404,675.15,674.03,0.29672269]
[1738063819813,0.29623485,675.14,674.03,0.29672269]
[1738063820008,0.27240404,675.13,674.03,0.29672269]
[1738063820209,0.29624363,675.12,674.03,0.29672269]
[1738063820513,0.27240404,675.11,674.03,0.29672269]
[1738063820713,0.56865205,675.11,674.03,0.29672269]
[1738063820916,0.27240404,675.1,674.03,0.29672269]
[1738063821408,0.29624801,675.11,674.03,0.29672269]
[1738063821409,0.27244553,675.09,674.03,0.29672269]
[1738063821609,0.27244553,675.08,674.03,0.29672269]
[1738063821915,0.27244553,675.07,674.03,0.29672269]
[1738063822116,0.27244553,675.1,673.76,1.10837276]
[1738063822318,0.27244553,675.09,673.57,1.10837276]
[1738063822516,0.27244553,675.1,673.57,1.10837276]
[1738063822916,0.27244553,675.1,673.58,0.29692092]
[1738063824015,0.29625679,675.09,673.58,0.29692092]
[1738063824215,0.27244553,675.08,673.58,0.29692092]
[1738063825512,0.27244553,675.08,673.59,1.54821488]
[1738063825814,0.29626557,675.07,673.59,1.54821488]
[1738063826120,0.27244553,675.06,673.59,1.54821488]
[1738063826318,0.29627435,675.05,673.59,1.54821488]
[1738063826519,0.27244553,675.04,673.59,1.54821488]
[1738063826719,0.29628312,675.03,673.59,1.54821488]
[1738063827015,0.27244553,675.02,673.59,1.54821488]
[1738063827217,0.2962919,675.01,673.59,1.54821488]
[1738063827417,0.27244553,675.0,673.59,1.8451314]
[1738063827613,0.29630068,674.99,673.59,1.8451314]
[1738063827818,0.27244553,674.98,673.59,1.8451314]
[1738063828020,0.5687506,674.98,673.59,1.8451314]
[1738063828220,0.27249209,674.97,673.59,1.8451314]
[1738063829923,1.82069066,674.96,673.59,1.8451314]
[1738063830223,0.27249874,674.95,673.59,1.8451314]
[1738063838327,1.54819192,674.96,673.59,1.8451314]
[1738063838527,0.27247034,674.95,673.59,1.8451314]
[1738063839627,0.27247034,674.95,673.6,0.29691211]
[1738063843229,0.27247034,674.95,673.61,1.10399988]
[1738063847430,0.27247034,674.95,673.6,0.29691211]
[1738063849336,1.54819192,674.96,673.6,0.29691211]
[1738063850034,0.27244573,674.95,673.6,0.29691211]
[1738063850736,0.27244573,674.95,673.68,1.10399988]
[1738063851136,1.54819192,674.96,673.68,1.10399988]
[1738063851337,0.29630507,674.98,673.68,1.10399988]
[1738063852333,0.29630507,674.98,673.69,0.29687244]
[1738063853034,0.27242234,674.97,673.69,0.29687244]
[1738063853938,0.27242234,674.97,673.91,1.10399988]
[1738063857231,0.29630507,674.98,673.91,1.10399988]
[1738063857540,0.29630507,674.98,673.94,1.10399988]
[1738063861241,0.29630507,674.98,673.85,1.10399988]
[1738063864844,0.29630507,674.98,673.77,1.10399988]
[1738063865343,0.29630507,674.98,673.78,0.29683279]
[1738063869046,0.29630507,674.98,673.92,1.10399988]